[Event "*** Titled Tuesday Blitz"]
[Site "Chess.com"]
[Date "2021.03.02"]
[Round "11"]
[White "ljuks68"]
[Black "Nayemhaque22"]
[Result "0-1"]
[WhiteElo "2439"]
[BlackElo "2336"]
[TimeControl "180+1"]
[EndTime "12:07:39 PST"]
[Termination "Nayemhaque22 won by resignation"]

1. e4 {[%clk 0:03:00.9]} 1... c6 {[%clk 0:03:00.2]} 2. d4 {[%clk 0:02:59.8]}
2... d5 {[%clk 0:03:00.7]} 3. e5 {[%clk 0:03:00.3]} 3... Bf5 {[%clk 0:02:59.8]}
4. Nd2 {[%clk 0:03:00.2]} 4... e6 {[%clk 0:02:58.2]} 5. Nb3 {[%clk 0:03:00.4]}
5... a6 {[%clk 0:02:46.9]} 6. Nf3 {[%clk 0:02:59.3]} 6... c5 {[%clk 0:02:46.8]}
7. dxc5 {[%clk 0:02:58.1]} 7... Bxc5 {[%clk 0:02:47.5]} 8. Nxc5 {[%clk
0:02:57.1]} 8... Qa5+ {[%clk 0:02:47.6]} 9. c3 {[%clk 0:02:56.2]} 9... Qxc5
{[%clk 0:02:48.5]} 10. Nd4 {[%clk 0:02:55.3]} 10... Ne7 {[%clk 0:02:46]} 11. Be3
{[%clk 0:02:52.7]} 11... Qc7 {[%clk 0:02:44.2]} 12. f4 {[%clk 0:02:52.1]} 12...
Nbc6 {[%clk 0:02:30.4]} 13. Be2 {[%clk 0:02:50]} 13... Nxd4 {[%clk 0:02:27.7]}
14. Bxd4 {[%clk 0:02:46.6]} 14... Nc6 {[%clk 0:02:26.5]} 15. Be3 {[%clk
0:02:44.7]} 15... O-O {[%clk 0:02:16.6]} 16. g4 {[%clk 0:02:41.1]} 16... Be4
{[%clk 0:02:16.1]} 17. O-O {[%clk 0:02:41.3]} 17... Rad8 {[%clk 0:02:13.9]} 18.
Bd3 {[%clk 0:02:31.6]} 18... f6 {[%clk 0:02:09.1]} 19. Bc5 {[%clk 0:02:18.5]}
19... Rf7 {[%clk 0:02:01.5]} 20. Bxe4 {[%clk 0:01:48.5]} 20... dxe4 {[%clk
0:02:02.4]} 21. Qe2 {[%clk 0:01:47.4]} 21... Nxe5 {[%clk 0:01:56.8]} 22. Be3
{[%clk 0:01:36.7]} 22... Nf3+ {[%clk 0:01:49.8]} 23. Kh1 {[%clk 0:01:36.3]}
23... f5 {[%clk 0:01:49.5]} 24. Rad1 {[%clk 0:01:25.1]} 24... Rfd7 {[%clk
0:01:49]} 25. Rxd7 {[%clk 0:01:21.2]} 25... Qxd7 {[%clk 0:01:49.9]} 26. Bb6
{[%clk 0:01:20.6]} 26... Qd3 {[%clk 0:01:42]} 27. Qf2 {[%clk 0:01:10.4]} 27...
fxg4 {[%clk 0:01:07.3]} 28. Bxd8 {[%clk 0:01:06]} 28... e3 {[%clk 0:01:06.7]}
29. Qg3 {[%clk 0:00:48]} 29... Qxf1+ {[%clk 0:01:05.5]} 0-1

[Event "*** Titled Tuesday Blitz"]
[Site "Chess.com"]
[Date "2021.03.02"]
[Round "11"]
[White "AttackSparrow"]
[Black "TeukkaSalama"]
[Result "1-0"]
[WhiteElo "2532"]
[BlackElo "2376"]
[TimeControl "180+1"]
[EndTime "12:07:51 PST"]
[Termination "AttackSparrow won by resignation"]

1. e4 {[%clk 0:03:00.9]} 1... e6 {[%clk 0:02:59.2]} 2. d4 {[%clk 0:02:53.1]}
2... d5 {[%clk 0:02:59.7]} 3. Bd3 {[%clk 0:02:53.4]} 3... dxe4 {[%clk
0:02:58.4]} 4. Bxe4 {[%clk 0:02:54.3]} 4... Nf6 {[%clk 0:02:58.8]} 5. Bf3 {[%clk
0:02:54.8]} 5... c5 {[%clk 0:02:58.6]} 6. Ne2 {[%clk 0:02:55.1]} 6... Nc6 {[%clk
0:02:54.3]} 7. Be3 {[%clk 0:02:52.1]} 7... cxd4 {[%clk 0:02:49.7]} 8. Nxd4
{[%clk 0:02:53]} 8... Ne5 {[%clk 0:02:49.8]} 9. Nc3 {[%clk 0:02:48.4]} 9... Bb4
{[%clk 0:02:47.1]} 10. Nb5 {[%clk 0:02:45]} 10... O-O {[%clk 0:01:50.4]} 11.
Qxd8 {[%clk 0:02:39.1]} 11... Nxf3+ {[%clk 0:01:50.1]} 12. gxf3 {[%clk
0:02:38.8]} 12... Rxd8 {[%clk 0:01:50.8]} 13. Nc7 {[%clk 0:02:39.3]} 13... Rb8
{[%clk 0:01:50.7]} 14. Bxa7 {[%clk 0:02:38.8]} 14... Bd7 {[%clk 0:01:37.8]} 15.
Bxb8 {[%clk 0:02:21.4]} 15... Rxb8 {[%clk 0:01:37.7]} 16. O-O-O {[%clk
0:02:22.1]} 16... Bxc3 {[%clk 0:01:33.4]} 17. bxc3 {[%clk 0:02:20.2]} 17... Rc8
{[%clk 0:01:28.4]} 18. Nxe6 {[%clk 0:02:18.4]} 18... Bxe6 {[%clk 0:01:27.4]} 19.
Kb2 {[%clk 0:02:14.6]} 19... g6 {[%clk 0:01:02.3]} 20. Rd4 {[%clk 0:01:53.2]}
20... Nd5 {[%clk 0:01:01.2]} 21. Rhd1 {[%clk 0:01:43.9]} 21... Kg7 {[%clk
0:00:53.6]} 22. Rxd5 {[%clk 0:01:43.6]} 22... Bxd5 {[%clk 0:00:52.3]} 23. Rxd5
{[%clk 0:01:44.5]} 23... Rc4 {[%clk 0:00:49.3]} 24. Rd7 {[%clk 0:01:43]} 24...
Rh4 {[%clk 0:00:47.7]} 25. Rxb7 {[%clk 0:01:40.8]} 25... Rxh2 {[%clk 0:00:48]}
26. a4 {[%clk 0:01:41.2]} 26... Rxf2 {[%clk 0:00:45.7]} 27. a5 {[%clk
0:01:41.4]} 27... Rxf3 {[%clk 0:00:46.4]} 28. a6 {[%clk 0:01:39.6]} 28... Rf6
{[%clk 0:00:46.1]} 29. a7 {[%clk 0:01:37.7]} 29... Ra6 {[%clk 0:00:46]} 30. c4
{[%clk 0:01:33.4]} 30... h5 {[%clk 0:00:41]} 31. c5 {[%clk 0:01:33.7]} 31... h4
{[%clk 0:00:41.2]} 32. c6 {[%clk 0:01:34.1]} 32... h3 {[%clk 0:00:36.4]} 33. c7
{[%clk 0:01:33.5]} 33... h2 {[%clk 0:00:31.3]} 34. c8=Q {[%clk 0:01:31.2]} 34...
h1=Q {[%clk 0:00:27.2]} 35. Qc3+ {[%clk 0:01:31]} 35... Kh6 {[%clk 0:00:14.3]}
36. Qh8+ {[%clk 0:01:30]} 1-0

[Event "*** Titled Tuesday Blitz"]
[Site "Chess.com"]
[Date "2021.03.02"]
[Round "11"]
[White "AryanTari"]
[Black "TheBigBoss04"]
[Result "1-0"]
[WhiteElo "2904"]
[BlackElo "2764"]
[TimeControl "180+1"]
[EndTime "12:08:02 PST"]
[Termination "AryanTari won by resignation"]

1. e4 {[%clk 0:03:00.9]} 1... g6 {[%clk 0:02:59.8]} 2. d4 {[%clk 0:02:59.9]}
2... Bg7 {[%clk 0:03:00.5]} 3. Nf3 {[%clk 0:02:58.5]} 3... d6 {[%clk 0:03:00.5]}
4. Bd3 {[%clk 0:02:54.6]} 4... Nf6 {[%clk 0:02:59]} 5. O-O {[%clk 0:02:53]} 5...
O-O {[%clk 0:02:59.6]} 6. c3 {[%clk 0:02:53.5]} 6... Nc6 {[%clk 0:03:00]} 7. h3
{[%clk 0:02:51.1]} 7... e5 {[%clk 0:03:00]} 8. Re1 {[%clk 0:02:50.3]} 8... Re8
{[%clk 0:03:00.3]} 9. Bg5 {[%clk 0:02:43.2]} 9... h6 {[%clk 0:02:52.4]} 10. Bh4
{[%clk 0:02:43.5]} 10... g5 {[%clk 0:02:52.8]} 11. Bg3 {[%clk 0:02:43.9]} 11...
g4 {[%clk 0:02:53.3]} 12. dxe5 {[%clk 0:02:32.6]} 12... Nh5 {[%clk 0:02:26.2]}
13. Bh4 {[%clk 0:02:17.2]} 13... Qd7 {[%clk 0:02:24.6]} 14. Nh2 {[%clk
0:02:03.6]} 14... Nxe5 {[%clk 0:02:15.5]} 15. Be2 {[%clk 0:02:02.3]} 15... Nf4
{[%clk 0:01:57.9]} 16. Bxg4 {[%clk 0:01:58.6]} 16... Qb5 {[%clk 0:01:42.1]} 17.
Bxc8 {[%clk 0:01:58.4]} 17... Qxb2 {[%clk 0:01:28.5]} 18. Nd2 {[%clk 0:01:58.3]}
18... Raxc8 {[%clk 0:01:21.7]} 19. Re3 {[%clk 0:01:40.8]} 19... Nfd3 {[%clk
0:00:50.9]} 20. Rb1 {[%clk 0:01:29.6]} 20... Qxc3 {[%clk 0:00:46.8]} 21. Ng4
{[%clk 0:01:06.4]} 21... Nxg4 {[%clk 0:00:41.3]} 22. Qxg4 {[%clk 0:01:06.6]}
22... Qxd2 {[%clk 0:00:39.4]} 23. Rxd3 {[%clk 0:01:01]} 23... h5 {[%clk
0:00:05.2]} 24. Qxc8 {[%clk 0:00:59.1]} 1-0

[Event "*** Titled Tuesday Blitz"]
[Site "Chess.com"]
[Date "2021.03.02"]
[Round "11"]
[White "alexrustemov"]
[Black "Grandmaster2B"]
[Result "1-0"]
[WhiteElo "2701"]
[BlackElo "2500"]
[TimeControl "180+1"]
[EndTime "12:08:14 PST"]
[Termination "alexrustemov won on time"]

1. c4 {[%clk 0:03:00.9]} 1... e5 {[%clk 0:02:59.9]} 2. g3 {[%clk 0:03:00.6]}
2... c6 {[%clk 0:02:59.9]} 3. d4 {[%clk 0:02:59.7]} 3... Bb4+ {[%clk 0:02:59.7]}
4. Bd2 {[%clk 0:02:59.3]} 4... Bxd2+ {[%clk 0:03:00.2]} 5. Qxd2 {[%clk
0:03:00.1]} 5... d6 {[%clk 0:03:01.1]} 6. Nc3 {[%clk 0:02:55.8]} 6... Qe7 {[%clk
0:02:56.6]} 7. Bg2 {[%clk 0:02:54.1]} 7... Nf6 {[%clk 0:02:52.5]} 8. e4 {[%clk
0:02:45.7]} 8... O-O {[%clk 0:02:48.3]} 9. Nge2 {[%clk 0:02:43.5]} 9... Nbd7
{[%clk 0:02:35.4]} 10. O-O {[%clk 0:02:42.8]} 10... Re8 {[%clk 0:02:20.4]} 11.
h3 {[%clk 0:02:40.2]} 11... exd4 {[%clk 0:02:15.6]} 12. Nxd4 {[%clk 0:02:39.5]}
12... Ne5 {[%clk 0:02:16]} 13. b3 {[%clk 0:02:36.7]} 13... Qc7 {[%clk
0:01:57.9]} 14. Rad1 {[%clk 0:02:22.8]} 14... Qa5 {[%clk 0:01:31.1]} 15. f4
{[%clk 0:02:18.6]} 15... Ng6 {[%clk 0:01:26.7]} 16. Nde2 {[%clk 0:02:06.7]}
16... Rd8 {[%clk 0:01:16.4]} 17. e5 {[%clk 0:02:01.9]} 17... Ne8 {[%clk
0:01:10.6]} 18. Ne4 {[%clk 0:02:00]} 18... Qxd2 {[%clk 0:00:46.6]} 19. Rxd2
{[%clk 0:02:00.9]} 19... d5 {[%clk 0:00:36.7]} 20. cxd5 {[%clk 0:01:52.6]} 20...
cxd5 {[%clk 0:00:37.6]} 21. Rfd1 {[%clk 0:01:48.8]} 21... Ne7 {[%clk 0:00:34.5]}
22. N4c3 {[%clk 0:01:43.1]} 22... Be6 {[%clk 0:00:34]} 23. g4 {[%clk 0:01:35.6]}
23... g6 {[%clk 0:00:32.2]} 24. Nxd5 {[%clk 0:01:34.5]} 24... Nxd5 {[%clk
0:00:30.7]} 25. Bxd5 {[%clk 0:01:35.4]} 25... Nc7 {[%clk 0:00:26.9]} 26. Bxb7
{[%clk 0:01:31.2]} 26... Rxd2 {[%clk 0:00:25.1]} 27. Rxd2 {[%clk 0:01:32.1]}
27... Rb8 {[%clk 0:00:25.8]} 28. Bf3 {[%clk 0:01:30.8]} 28... a5 {[%clk
0:00:25.8]} 29. Nd4 {[%clk 0:01:29.5]} 29... Rd8 {[%clk 0:00:23.5]} 30. Kf2
{[%clk 0:01:28.7]} 30... Nb5 {[%clk 0:00:20.8]} 31. Ke3 {[%clk 0:01:28.8]} 31...
Nxd4 {[%clk 0:00:17.8]} 32. Rxd4 {[%clk 0:01:28.6]} 32... Rc8 {[%clk 0:00:18.7]}
33. Be4 {[%clk 0:01:26.2]} 33... Rc3+ {[%clk 0:00:18.4]} 34. Rd3 {[%clk
0:01:25.8]} 34... Rc1 {[%clk 0:00:18.6]} 35. f5 {[%clk 0:01:25.1]} 35... gxf5
{[%clk 0:00:17.4]} 36. gxf5 {[%clk 0:01:26]} 36... Bc8 {[%clk 0:00:17.8]} 37. f6
{[%clk 0:01:22]} 37... Re1+ {[%clk 0:00:08.2]} 38. Kf2 {[%clk 0:01:20.2]} 1-0

[Event "*** Titled Tuesday Blitz"]
[Site "Chess.com"]
[Date "2021.03.02"]
[Round "11"]
[White "beto-betun"]
[Black "frankshar"]
[Result "0-1"]
[WhiteElo "2216"]
[BlackElo "2350"]
[TimeControl "180+1"]
[EndTime "12:08:18 PST"]
[Termination "frankshar won by resignation"]

1. d4 {[%clk 0:03:00.9]} 1... Nf6 {[%clk 0:02:59.7]} 2. Nf3 {[%clk 0:03:01.4]}
2... e6 {[%clk 0:03:00.1]} 3. g3 {[%clk 0:03:01.9]} 3... d5 {[%clk 0:03:00.4]}
4. Bg2 {[%clk 0:03:02.3]} 4... b5 {[%clk 0:03:00.1]} 5. O-O {[%clk 0:03:03]}
5... Nbd7 {[%clk 0:03:00]} 6. a4 {[%clk 0:03:03.1]} 6... b4 {[%clk 0:03:00.4]}
7. c3 {[%clk 0:03:02.5]} 7... bxc3 {[%clk 0:03:01.3]} 8. bxc3 {[%clk 0:03:02.5]}
8... Ba6 {[%clk 0:03:00.8]} 9. Re1 {[%clk 0:02:47.5]} 9... Bd6 {[%clk 0:02:57]}
10. Ba3 {[%clk 0:02:42.1]} 10... O-O {[%clk 0:02:56.3]} 11. Bxd6 {[%clk
0:02:40.2]} 11... cxd6 {[%clk 0:02:57.2]} 12. Na3 {[%clk 0:02:36.2]} 12... Qa5
{[%clk 0:02:43.5]} 13. Nb5 {[%clk 0:02:18.8]} 13... Bxb5 {[%clk 0:02:38.7]} 14.
axb5 {[%clk 0:02:19.7]} 14... Qxb5 {[%clk 0:02:39.4]} 15. Qa4 {[%clk 0:02:10.9]}
15... Qxa4 {[%clk 0:02:34.3]} 16. Rxa4 {[%clk 0:02:11.8]} 16... Nb6 {[%clk
0:02:34.8]} 17. Ra6 {[%clk 0:02:06.2]} 17... Rfb8 {[%clk 0:01:56.5]} 18. Rea1
{[%clk 0:02:03]} 18... Rb7 {[%clk 0:01:42.5]} 19. Nd2 {[%clk 0:02:01.9]} 19...
Ne8 {[%clk 0:01:41.6]} 20. e4 {[%clk 0:02:01.8]} 20... Nc7 {[%clk 0:01:39.8]}
21. R6a3 {[%clk 0:01:58.2]} 21... Nc4 {[%clk 0:01:35]} 22. Nxc4 {[%clk
0:01:57.8]} 22... dxc4 {[%clk 0:01:35.9]} 23. d5 {[%clk 0:01:45.3]} 23... exd5
{[%clk 0:01:29.1]} 24. exd5 {[%clk 0:01:46.2]} 24... Nb5 {[%clk 0:01:15.1]} 25.
Ra6 {[%clk 0:01:40.5]} 25... Rd7 {[%clk 0:01:06.3]} 26. Bh3 {[%clk 0:01:38.4]}
26... Rc7 {[%clk 0:01:02.9]} 27. Kg2 {[%clk 0:01:31.1]} 27... g6 {[%clk
0:00:59.2]} 28. g4 {[%clk 0:01:25.8]} 28... Nxc3 {[%clk 0:00:54.5]} 29. Rxd6
{[%clk 0:01:23.1]} 29... Ne4 {[%clk 0:00:54.1]} 30. Rda6 {[%clk 0:01:18.9]}
30... c3 {[%clk 0:00:47.6]} 31. f4 {[%clk 0:01:01.6]} 31... c2 {[%clk
0:00:37.8]} 32. Rc6 {[%clk 0:00:58.7]} 32... Rxc6 {[%clk 0:00:34.5]} 33. dxc6
{[%clk 0:00:59.6]} 33... Nc5 {[%clk 0:00:34.4]} 34. Rc1 {[%clk 0:00:54.3]} 34...
Nd3 {[%clk 0:00:33.7]} 35. Rxc2 {[%clk 0:00:53.2]} 35... Ne1+ {[%clk 0:00:34.1]}
36. Kg3 {[%clk 0:00:51.4]} 36... Nxc2 {[%clk 0:00:35]} 37. g5 {[%clk 0:00:48.6]}
37... Nd4 {[%clk 0:00:33.9]} 38. c7 {[%clk 0:00:48.1]} 38... Nf5+ {[%clk
0:00:33.6]} 0-1

[Event "*** Titled Tuesday Blitz"]
[Site "Chess.com"]
[Date "2021.03.02"]
[Round "11"]
[White "MerryPoppies"]
[Black "gisela_roque"]
[Result "1-0"]
[WhiteElo "2135"]
[BlackElo "1765"]
[TimeControl "180+1"]
[EndTime "12:08:18 PST"]
[Termination "MerryPoppies won by resignation"]

1. d4 {[%clk 0:03:00.9]} 1... e6 {[%clk 0:02:58.1]} 2. c4 {[%clk 0:02:59.5]}
2... Nf6 {[%clk 0:02:56.8]} 3. Nc3 {[%clk 0:02:59.5]} 3... Bb4 {[%clk
0:02:56.5]} 4. Qc2 {[%clk 0:02:59.2]} 4... O-O {[%clk 0:02:55.2]} 5. Nf3 {[%clk
0:02:58.8]} 5... c5 {[%clk 0:02:54.3]} 6. e3 {[%clk 0:02:58.6]} 6... Bxc3+
{[%clk 0:02:53.1]} 7. Qxc3 {[%clk 0:02:58.3]} 7... Nc6 {[%clk 0:02:52.9]} 8. Be2
{[%clk 0:02:57.4]} 8... d6 {[%clk 0:02:53.1]} 9. O-O {[%clk 0:02:56.9]} 9... b6
{[%clk 0:02:52.9]} 10. b3 {[%clk 0:02:55.6]} 10... Bb7 {[%clk 0:02:53]} 11. Bb2
{[%clk 0:02:53.9]} 11... Re8 {[%clk 0:02:49.9]} 12. Rad1 {[%clk 0:02:53.2]}
12... Qc7 {[%clk 0:02:44.9]} 13. d5 {[%clk 0:02:43.8]} 13... Ne7 {[%clk
0:02:28.3]} 14. dxe6 {[%clk 0:02:35.3]} 14... fxe6 {[%clk 0:02:29.2]} 15. Ng5
{[%clk 0:02:32]} 15... Nf5 {[%clk 0:02:25.4]} 16. Bf3 {[%clk 0:02:25.2]} 16...
Bxf3 {[%clk 0:02:23.8]} 17. Nxf3 {[%clk 0:02:26.1]} 17... Ne4 {[%clk 0:02:23.4]}
18. Qc2 {[%clk 0:02:21.8]} 18... Qc6 {[%clk 0:02:16]} 19. Nd2 {[%clk 0:02:17.1]}
19... Nxd2 {[%clk 0:02:13.5]} 20. Rxd2 {[%clk 0:02:16.5]} 20... Nh4 {[%clk
0:02:08.8]} 21. f3 {[%clk 0:02:15.4]} 21... Rf8 {[%clk 0:02:06.8]} 22. Rfd1
{[%clk 0:02:12.7]} 22... Rad8 {[%clk 0:02:04.2]} 23. Qc3 {[%clk 0:02:09.3]}
23... Rf7 {[%clk 0:01:58.8]} 24. e4 {[%clk 0:02:08.4]} 24... Rdd7 {[%clk
0:01:52.8]} 25. Qe3 {[%clk 0:02:06.1]} 25... a6 {[%clk 0:01:48.4]} 26. Qg5
{[%clk 0:02:03.3]} 26... Ng6 {[%clk 0:01:44.7]} 27. h4 {[%clk 0:02:01.7]} 27...
b5 {[%clk 0:01:31]} 28. h5 {[%clk 0:01:59.3]} 28... Nf8 {[%clk 0:01:30.8]} 29.
h6 {[%clk 0:01:48.8]} 29... e5 {[%clk 0:01:30.8]} 30. Rd5 {[%clk 0:01:15.3]}
30... Ne6 {[%clk 0:01:26.6]} 31. Qg4 {[%clk 0:00:57.2]} 31... Nf4 {[%clk
0:01:26.3]} 32. R5d2 {[%clk 0:00:56.7]} 32... Kh8 {[%clk 0:01:09.2]} 33. Bxe5
{[%clk 0:00:51.3]} 33... dxe5 {[%clk 0:00:38.8]} 34. Rxd7 {[%clk 0:00:50]} 34...
Rxd7 {[%clk 0:00:37.6]} 35. hxg7+ {[%clk 0:00:42.7]} 35... Kg8 {[%clk
0:00:34.3]} 36. Qxd7 {[%clk 0:00:40]} 1-0

[Event "*** Titled Tuesday Blitz"]
[Site "Chess.com"]
[Date "2021.03.02"]
[Round "11"]
[White "Arvids_Andrejevs"]
[Black "Bayernbk"]
[Result "0-1"]
[WhiteElo "2395"]
[BlackElo "2556"]
[TimeControl "180+1"]
[EndTime "12:08:19 PST"]
[Termination "Bayernbk won by resignation"]

1. e4 {[%clk 0:02:57.9]} 1... d5 {[%clk 0:02:57.4]} 2. exd5 {[%clk 0:02:56.6]}
2... Nf6 {[%clk 0:02:58.1]} 3. c4 {[%clk 0:02:56.4]} 3... c6 {[%clk 0:02:57.8]}
4. d4 {[%clk 0:02:56.7]} 4... cxd5 {[%clk 0:02:57.4]} 5. Nc3 {[%clk 0:02:57.3]}
5... g6 {[%clk 0:02:58]} 6. cxd5 {[%clk 0:02:56.4]} 6... Bg7 {[%clk 0:02:58.5]}
7. g3 {[%clk 0:02:56.5]} 7... O-O {[%clk 0:02:58.5]} 8. Bg2 {[%clk 0:02:56.9]}
8... Nbd7 {[%clk 0:02:57.5]} 9. Nge2 {[%clk 0:02:57.1]} 9... b6 {[%clk 0:02:58]}
10. O-O {[%clk 0:02:56.4]} 10... Bb7 {[%clk 0:02:58.4]} 11. Nf4 {[%clk
0:02:56.3]} 11... Rc8 {[%clk 0:02:56.6]} 12. Re1 {[%clk 0:02:55.7]} 12... Re8
{[%clk 0:02:53.1]} 13. Qb3 {[%clk 0:02:54]} 13... a6 {[%clk 0:02:50.9]} 14. Nd3
{[%clk 0:02:52.4]} 14... b5 {[%clk 0:02:49]} 15. Be3 {[%clk 0:02:37.2]} 15...
Nb6 {[%clk 0:02:47.1]} 16. Nc5 {[%clk 0:02:34.4]} 16... Bxd5 {[%clk 0:02:40]}
17. Nxd5 {[%clk 0:02:31.7]} 17... Nbxd5 {[%clk 0:02:38.4]} 18. Nxa6 {[%clk
0:02:27.7]} 18... Nxe3 {[%clk 0:02:31]} 19. fxe3 {[%clk 0:02:27.1]} 19... e5
{[%clk 0:02:28.8]} 20. dxe5 {[%clk 0:02:06.3]} 20... Ng4 {[%clk 0:02:21.7]} 21.
Qxb5 {[%clk 0:01:39.6]} 21... Rxe5 {[%clk 0:02:12.5]} 22. Qb7 {[%clk 0:01:21.1]}
22... Nxe3 {[%clk 0:02:06.4]} 23. Nb4 {[%clk 0:00:52.7]} 23... Rb8 {[%clk
0:01:50.2]} 24. Nc6 {[%clk 0:00:43.7]} 24... Rxb7 {[%clk 0:01:47.1]} 25. Nxd8
{[%clk 0:00:43.7]} 25... Rxb2 {[%clk 0:01:47.8]} 26. Bf3 {[%clk 0:00:33]} 26...
Rf5 {[%clk 0:01:29.8]} 27. Be4 {[%clk 0:00:16.3]} 27... Bd4 {[%clk 0:00:53.4]}
28. Bxf5 {[%clk 0:00:14.5]} 28... Ng4+ {[%clk 0:00:48.7]} 0-1

[Event "*** Titled Tuesday Blitz"]
[Site "Chess.com"]
[Date "2021.03.02"]
[Round "11"]
[White "Gusarov91"]
[Black "Volodar_Murzin"]
[Result "1-0"]
[WhiteElo "2539"]
[BlackElo "2666"]
[TimeControl "180+1"]
[EndTime "12:08:22 PST"]
[Termination "Gusarov91 won on time"]

1. d4 {[%clk 0:03:00.9]} 1... Nf6 {[%clk 0:02:57.2]} 2. Nf3 {[%clk 0:03:00.3]}
2... g6 {[%clk 0:02:57.5]} 3. c4 {[%clk 0:03:00.5]} 3... Bg7 {[%clk 0:02:58.1]}
4. Nc3 {[%clk 0:03:00.3]} 4... O-O {[%clk 0:02:58.8]} 5. Bg5 {[%clk 0:02:58.2]}
5... d6 {[%clk 0:02:59.2]} 6. e3 {[%clk 0:02:58.4]} 6... Nbd7 {[%clk 0:02:58.5]}
7. Rc1 {[%clk 0:02:57.5]} 7... e5 {[%clk 0:02:57.9]} 8. Be2 {[%clk 0:02:57]}
8... b6 {[%clk 0:02:53.7]} 9. O-O {[%clk 0:02:56.5]} 9... Bb7 {[%clk 0:02:49.4]}
10. dxe5 {[%clk 0:02:57]} 10... dxe5 {[%clk 0:02:44.9]} 11. Nd5 {[%clk
0:02:56.4]} 11... e4 {[%clk 0:02:26.3]} 12. Nd4 {[%clk 0:02:48.7]} 12... h6
{[%clk 0:02:22.4]} 13. Nxf6+ {[%clk 0:02:47.6]} 13... Nxf6 {[%clk 0:02:20.8]}
14. Bh4 {[%clk 0:02:45.8]} 14... Qe7 {[%clk 0:02:12]} 15. c5 {[%clk 0:02:36.9]}
15... Rfd8 {[%clk 0:01:48.3]} 16. c6 {[%clk 0:02:27.3]} 16... Bc8 {[%clk
0:01:46.8]} 17. Qb3 {[%clk 0:02:26.4]} 17... g5 {[%clk 0:01:33.9]} 18. Bg3
{[%clk 0:02:26.3]} 18... Nd5 {[%clk 0:01:30.3]} 19. Bc4 {[%clk 0:02:20.8]} 19...
Nf4 {[%clk 0:00:57.7]} 20. Nb5 {[%clk 0:02:12.2]} 20... a6 {[%clk 0:00:51]} 21.
exf4 {[%clk 0:02:10.2]} 21... axb5 {[%clk 0:00:48.3]} 22. Qxb5 {[%clk
0:01:54.2]} 22... Rd4 {[%clk 0:00:40.8]} 23. fxg5 {[%clk 0:01:46.7]} 23... hxg5
{[%clk 0:00:38.8]} 24. Qb3 {[%clk 0:01:41.4]} 24... Rxc4 {[%clk 0:00:18.3]} 25.
Rxc4 {[%clk 0:01:35]} 25... Qe8 {[%clk 0:00:09.6]} 26. Re1 {[%clk 0:01:19.6]}
26... Be6 {[%clk 0:00:05]} 27. Rcxe4 {[%clk 0:01:19.6]} 27... Qxc6 {[%clk
0:00:04.7]} 28. Rxe6 {[%clk 0:01:17.3]} 28... fxe6 {[%clk 0:00:04.6]} 29. Rxe6
{[%clk 0:01:17.8]} 29... Qa4 {[%clk 0:00:02.8]} 30. Re8+ {[%clk 0:01:11.2]}
30... Kh7 {[%clk 0:00:02.1]} 31. Qg8+ {[%clk 0:01:02.4]} 1-0

[Event "*** Titled Tuesday Blitz"]
[Site "Chess.com"]
[Date "2021.03.02"]
[Round "11"]
[White "andriipalchuk"]
[Black "yuki_chess123"]
[Result "1-0"]
[WhiteElo "2552"]
[BlackElo "2275"]
[TimeControl "180+1"]
[EndTime "12:08:23 PST"]
[Termination "andriipalchuk won by resignation"]

1. e4 {[%clk 0:03:00.9]} 1... g6 {[%clk 0:02:58.7]} 2. d4 {[%clk 0:02:59.1]}
2... Bg7 {[%clk 0:02:59]} 3. Nc3 {[%clk 0:02:59.5]} 3... c6 {[%clk 0:02:59.5]}
4. f3 {[%clk 0:03:00.2]} 4... d5 {[%clk 0:02:59.7]} 5. Be3 {[%clk 0:02:59.9]}
5... dxe4 {[%clk 0:03:00]} 6. fxe4 {[%clk 0:03:00.1]} 6... Nf6 {[%clk
0:03:00.6]} 7. Nf3 {[%clk 0:02:59.8]} 7... O-O {[%clk 0:03:00.1]} 8. Be2 {[%clk
0:02:49.7]} 8... b5 {[%clk 0:02:59.6]} 9. a3 {[%clk 0:02:47.7]} 9... Ng4 {[%clk
0:02:44.8]} 10. Bg1 {[%clk 0:02:36.5]} 10... e5 {[%clk 0:02:43.8]} 11. d5 {[%clk
0:02:28.2]} 11... a6 {[%clk 0:02:43.5]} 12. h3 {[%clk 0:02:25.5]} 12... Nf6
{[%clk 0:02:38.5]} 13. Bf2 {[%clk 0:02:09.3]} 13... Bb7 {[%clk 0:02:32.2]} 14.
d6 {[%clk 0:01:46.9]} 14... Nbd7 {[%clk 0:02:19.7]} 15. O-O {[%clk 0:01:45.6]}
15... c5 {[%clk 0:02:15.7]} 16. Nd2 {[%clk 0:01:17.8]} 16... b4 {[%clk
0:01:24.2]} 17. Na4 {[%clk 0:01:12.8]} 17... Nxe4 {[%clk 0:01:09.8]} 18. Nxe4
{[%clk 0:01:09.4]} 18... Bxe4 {[%clk 0:01:09.6]} 19. Nxc5 {[%clk 0:01:09.9]}
19... Nxc5 {[%clk 0:00:55.9]} 20. Bxc5 {[%clk 0:01:10.8]} 20... bxa3 {[%clk
0:00:56.2]} 21. Rxa3 {[%clk 0:01:05.6]} 21... Rc8 {[%clk 0:00:56.1]} 22. b4
{[%clk 0:01:02.4]} 22... Qd7 {[%clk 0:00:23.2]} 23. Rxa6 {[%clk 0:00:51.3]}
23... Rc6 {[%clk 0:00:04.8]} 24. Bb5 {[%clk 0:00:48.4]} 24... Rxd6 {[%clk
0:00:03.3]} 25. Bxd7 {[%clk 0:00:40.3]} 1-0